{"text_format":"2","workbook":"xlsx","n_sheets":3,"sheets":["Доходы","Расходы","Источники"],"not_rendered":{"charts":0,"images":0,"macros":0,"external_links":0,"defined_names":2,"comments":0,"pivot_tables":0},"unopened":[],"bounds":{"document_bytes":16777216,"sheet_cells":100000,"run_cost":"one","rows_first":2000,"rows_last":500,"rows_between":2000,"halvings":0,"cell_chars":16384,"cell_head_chars":4096},"cells_cut":0,"cells_raw":0,"read":"whole","date_system":"1900"}

{"sheet":"Доходы","index":0,"n_rows":68,"n_cols":7,"rows_kept":68,"cut":false,"hidden":false,"merged":[[161,3,161,4],[162,3,162,4],[150,3,150,4],[151,3,151,4],[152,3,152,4],[153,3,153,4],[154,3,154,4],[155,3,155,4],[158,3,158,4],[159,3,159,4],[134,3,134,4],[135,3,135,4],[160,3,160,4],[138,3,138,4],[139,3,139,4],[140,3,140,4],[141,3,141,4],[144,3,144,4],[145,3,145,4],[156,3,156,4],[157,3,157,4],[146,3,146,4],[142,3,142,4],[127,3,127,4],[128,3,128,4],[129,3,129,4],[130,3,130,4],[131,3,131,4],[109,3,109,4],[116,3,116,4],[102,3,102,4],[103,3,103,4],[104,3,104,4],[105,3,105,4],[106,3,106,4],[107,3,107,4],[108,3,108,4],[110,3,110,4],[95,3,95,4],[98,3,98,4],[99,3,99,4],[100,3,100,4],[101,3,101,4],[96,3,96,4],[97,3,97,4],[93,3,93,4],[90,3,90,4],[91,3,91,4],[86,3,86,4],[87,3,87,4],[89,3,89,4],[83,3,83,4],[78,3,78,4],[84,3,84,4],[85,3,85,4],[92,3,92,4],[79,3,79,4],[80,3,80,4],[81,3,81,4],[77,3,77,4],[82,3,82,4],[149,3,149,4],[136,3,136,4],[137,3,137,4],[143,3,143,4],[120,3,120,4],[121,3,121,4],[147,3,147,4],[148,3,148,4],[122,3,122,4],[123,3,123,4],[124,3,124,4],[125,3,125,4],[132,3,132,4],[133,3,133,4],[126,3,126,4],[111,3,111,4],[112,3,112,4],[113,3,113,4],[118,3,118,4],[119,3,119,4],[114,3,114,4],[115,3,115,4],[117,3,117,4],[94,3,94,4],[1,0,1,3],[2,0,2,3],[5,1,5,3],[4,0,4,3],[8,0,8,3],[88,3,88,4],[68,3,68,4],[75,3,75,4],[76,3,76,4],[69,3,69,4],[70,3,70,4],[71,3,71,4],[72,3,72,4],[73,3,73,4],[74,3,74,4]]}
[{"$nulls":5},"КОДЫ"]
["ОТЧЕТ ОБ ИСПОЛНЕНИИ БЮДЖЕТА",null,null,null,"Форма по ОКУД  ","0503117"]
["на  1 января  201 9 г.",null,null,null,"Дата  ","01.01.2019"]
["Наименование финансового органа",null,null,null,"по ОКПО  ","33042491"]
["Администрация сельского поселения Ершовское Одинцовского муниципального района Московской области",null,null,null,"Глава по БК  ","024"]
["Наименование публично-правового образования","Сельское поселение Ершовское Одинцовского муниципального района Московской области",null,null,"по ОКТМО  ","46641419"]
["Периодичность: месячная"]
["Единица измерения:  руб ",null,null,null,"по ОКЕИ  ","383"]
["1. Доходы бюджета"]
[]
[" Наименование показателя","Код строки","Код дохода по бюджетной классификации","Утвержденные бюджетные назначения","Исполнено","Неисполненные назначения","% исполнения"]
[1,2,3,"4","5","6","6"]
["ДОХОДЫ БЮДЖЕТА - ИТОГО","010","000 8 50 00000 00 0000 000",404895622.81999999,405291915.83999997,0,{"$f":"+E13/D13*100","v":100.09787535297119}]
["НАЛОГОВЫЕ И НЕНАЛОГОВЫЕ ДОХОДЫ","010","000 1 00 00000 00 0000 000",367809000,369000888.66000003,0,{"$f":"+E14/D14*100","v":100.32405097754543}]
["НАЛОГИ НА ПРИБЫЛЬ, ДОХОДЫ","010","000 1 01 00000 00 0000 000",3940000,4168679.36,0,105.80404467005076]
["Налог на доходы физических лиц","010","000 1 01 02000 01 0000 110",3940000,4168679.36,0,105.80404467005076]
["Налог на доходы физических лиц с доходов, источником которых является налоговый агент, за исключением доходов, в отношении которых исчисление и уплата налога осуществляются в соответствии со статьями 227, 2271 и 228 Налогового кодекса Российской Федерации","010","000 1 01 02010 01 0000 110",3895000,4120973.16,0,105.8016215661104]
["Налог на доходы физических лиц с доходов, полученных от осуществления деятельности физическими лицами, зарегистрированными в качестве индивидуальных предпринимателей, нотариусов, занимающихся частной практикой, адвокатов, учредивших адвокатские кабинеты и других лиц, занимающихся частной практикой в соответствии со статьей 227 Налогового кодекса Российской Федерации","010","000 1 01 02020 01 0000 110",0,2495.2600000000002,0]
["Налог на доходы физических лиц с доходов, полученных физическими лицами в соответствии со статьей 228 Налогового кодекса Российской Федерации","010","000 1 01 02030 01 0000 110",45000,45210.94,0,100.46875555555556]
["НАЛОГИ НА СОВОКУПНЫЙ ДОХОД","010","000 1 05 00000 00 0000 000",32000,32579.23,0,101.81009375000001]
["Единый сельскохозяйственный налог","010","000 1 05 03000 01 0000 110",32000,32579.23,0,101.81009375000001]
["Единый сельскохозяйственный налог","010","000 1 05 03010 01 0000 110",32000,32579.23,0,101.81009375000001]
["НАЛОГИ НА ИМУЩЕСТВО","010","000 1 06 00000 00 0000 000",360055000,360902145.32999998,0,100.23528220133035]
["Налог на имущество физических лиц","010","000 1 06 01000 00 0000 110",26806000,27159143.760000002,0,101.31740565545029]
["Налог на имущество физических лиц, взимаемый по ставкам, применяемым к объектам налогообложения, расположенным в границах сельских поселений","010","000 1 06 01030 10 0000 110",26806000,27159143.760000002,0,101.31740565545029]
["Земельный налог","010","000 1 06 06000 00 0000 110",333249000,333743001.56999999,0,100.14823797520773]
["Земельный налог с организаций","010","000 1 06 06030 00 0000 110",186750000,185956461.41,793538.59,99.575079737617131]
["Земельный налог с организаций, обладающих земельным участком, расположенным в границах сельских поселений","010","000 1 06 06033 10 0000 110",186750000,185956461.41,793538.59,99.575079737617131]
["Земельный налог с физических лиц","010","000 1 06 06040 00 0000 110",146499000,147786540.16,0,100.8788730025461]
["Земельный налог с физических лиц, обладающих земельным участком, расположенным в границах сельских поселений","010","000 1 06 06043 10 0000 110",146499000,147786540.16,0,100.8788730025461]
["ДОХОДЫ ОТ ИСПОЛЬЗОВАНИЯ ИМУЩЕСТВА, НАХОДЯЩЕГОСЯ В ГОСУДАРСТВЕННОЙ И МУНИЦИПАЛЬНОЙ СОБСТВЕННОСТИ","010","000 1 11 00000 00 0000 000",3344000,3408333.03,0,101.92383462918659]
["Доходы, получаемые в виде арендной либо иной платы за передачу в возмездное пользование государственного и муниципального имущества (за исключением имущества бюджетных и автономных учреждений, а также имущества государственных и муниципальных унитарных предприятий, в том числе казенных)","010","000 1 11 05000 00 0000 120",3344000,3408333.03,0,101.92383462918659]
["Доходы от сдачи в аренду имущества, находящегося в оперативном управлении органов государственной власти, органов местного самоуправления, государственных внебюджетных фондов и созданных ими учреждений (за исключением имущества бюджетных и автономных учреждений)","010","000 1 11 05030 00 0000 120",1244000,1244879.02,0,100.07066077170418]
["Доходы от сдачи в аренду имущества, находящегося в оперативном управлении органов управления сельских поселений и созданных ими учреждений (за исключением имущества муниципальных бюджетных и автономных учреждений)","010","000 1 11 05035 10 0000 120",1244000,1244879.02,0,100.07066077170418]
["Доходы от сдачи в аренду имущества, составляющего государственную (муниципальную) казну (за исключением земельных участков)","010","000 1 11 05070 00 0000 120",2100000,2163454.0099999998,0,103.02161952380951]
["Доходы от сдачи в аренду имущества, составляющего казну сельских поселений (за исключением земельных участков)","010","000 1 11 05075 10 0000 120",2100000,2163454.0099999998,0,103.02161952380951]
["ДОХОДЫ ОТ ОКАЗАНИЯ ПЛАТНЫХ УСЛУГ (РАБОТ) И КОМПЕНСАЦИИ ЗАТРАТ ГОСУДАРСТВА","010","000 1 13 00000 00 0000 000",222000,222406.56,0,100.18313513513513]
["Доходы от компенсации затрат государства","010","000 1 13 02000 00 0000 130",222000,222406.56,0,100.18313513513513]
["Прочие доходы от компенсации затрат государства","010","000 1 13 02990 00 0000 130",222000,222406.56,0,100.18313513513513]
["Прочие доходы от компенсации затрат бюджетов сельских поселений","010","000 1 13 02995 10 0000 130",222000,222406.56,0,100.18313513513513]
["ШТРАФЫ, САНКЦИИ, ВОЗМЕЩЕНИЕ УЩЕРБА","010","000 1 16 00000 00 0000 000",100000,150509.60999999999,0,150.50960999999998]
["Денежные взыскания (штрафы) за нарушение бюджетного законодательства Российской Федерации","010","000 1 16 18000 00 0000 140",10000,20000,0,200]
["Денежные взыскания (штрафы) за нарушение бюджетного законодательства (в части бюджетов сельских поселений)","010","000 1 16 18050 10 0000 140",10000,20000,0,200]
["Денежные взыскания (штрафы) за нарушение законодательства Российской Федерации о контрактной системе в сфере закупок товаров, работ, услуг для обеспечения государственных и муниципальных нужд","010","000 1 16 33000 00 0000 140",84000,120940.17,0,143.97639285714286]
["Денежные взыскания (штрафы) за нарушение законодательства Российской Федерации о контрактной системе в сфере закупок товаров, работ, услуг для обеспечения государственных и муниципальных нужд для нужд сельских поселений","010","000 1 16 33050 10 0000 140",84000,120940.17,0,143.97639285714286]
["Прочие поступления от денежных взысканий (штрафов) и иных сумм в возмещение ущерба","010","000 1 16 90000 00 0000 140",6000,9569.44,0,159.49066666666667]
["Прочие поступления от денежных взысканий (штрафов) и иных сумм в возмещение ущерба, зачисляемые в бюджеты сельских поселений","010","000 1 16 90050 10 0000 140",6000,9569.44,0,159.49066666666667]
["ПРОЧИЕ НЕНАЛОГОВЫЕ ДОХОДЫ","010","000 1 17 00000 00 0000 000",116000,116235.54,0,100.20305172413792]
["Прочие неналоговые доходы","010","000 1 17 05000 00 0000 180",116000,116235.54,0,100.20305172413792]
["Прочие неналоговые доходы бюджетов сельских поселений","010","000 1 17 05050 10 0000 180",116000,116235.54,0,100.20305172413792]
["БЕЗВОЗМЕЗДНЫЕ ПОСТУПЛЕНИЯ","010","000 2 00 00000 00 0000 000",37086622.82,36291027.18,795595.64,97.85476384878335]
["БЕЗВОЗМЕЗДНЫЕ ПОСТУПЛЕНИЯ ОТ ДРУГИХ БЮДЖЕТОВ БЮДЖЕТНОЙ СИСТЕМЫ РОССИЙСКОЙ ФЕДЕРАЦИИ","010","000 2 02 00000 00 0000 000",36555077.390000001,35759481.75,795595.64,97.823570084363581]
["Субсидии бюджетам бюджетной системы Российской Федерации (межбюджетные субсидии)","010","000 2 02 20000 00 0000 151",5498000,5498000,0,100]
["Прочие субсидии","010","000 2 02 29999 00 0000 151",5498000,5498000,0,100]
["Прочие субсидии бюджетам сельских поселений","010","000 2 02 29999 10 0000 151",5498000,5498000,0,100]
["Субвенции бюджетам бюджетной системы Российской Федерации","010","000 2 02 30000 00 0000 151",575000,575000,0,100]
["Субвенции бюджетам на осуществление первичного воинского учета на территориях, где отсутствуют военные комиссариаты","010","000 2 02 35118 00 0000 151",575000,575000,0,100]
["Субвенции бюджетам сельских поселений на осуществление первичного воинского учета на территориях, где отсутствуют военные комиссариаты","010","000 2 02 35118 10 0000 151",575000,575000,0,100]
["Иные межбюджетные трансферты","010","000 2 02 40000 00 0000 151",30482077.390000001,29686481.75,795595.64,97.38995597373227]
["Межбюджетные трансферты, передаваемые бюджетам муниципальных образований на осуществление части полномочий по решению вопросов местного значения в соответствии с заключенными соглашениями","010","000 2 02 40014 00 0000 151",30482077.390000001,29686481.75,795595.64,97.38995597373227]
["Межбюджетные трансферты, передаваемые бюджетам сельских поселений из бюджетов муниципальных районов на осуществление части полномочий по решению вопросов местного значения в соответствии с заключенными соглашениями","010","000 2 02 40014 10 0000 151",30482077.390000001,29686481.75,795595.64,97.38995597373227]
["ДОХОДЫ БЮДЖЕТОВ БЮДЖЕТНОЙ СИСТЕМЫ РОССИЙСКОЙ ФЕДЕРАЦИИ ОТ ВОЗВРАТА БЮДЖЕТАМИ БЮДЖЕТНОЙ СИСТЕМЫ РОССИЙСКОЙ ФЕДЕРАЦИИ И ОРГАНИЗАЦИЯМИ ОСТАТКОВ СУБСИДИЙ, СУБВЕНЦИЙ И ИНЫХ МЕЖБЮДЖЕТНЫХ ТРАНСФЕРТОВ, ИМЕЮЩИХ ЦЕЛЕВОЕ НАЗНАЧЕНИЕ, ПРОШЛЫХ ЛЕТ","010","000 2 18 00000 00 0000 000",539526.66,539526.66,0,100]
["Доходы бюджетов бюджетной системы Российской Федерации от возврата бюджетами бюджетной системы Российской Федерации остатков субсидий, субвенций и иных межбюджетных трансфертов, имеющих целевое назначение, прошлых лет","010","000 2 18 00000 00 0000 151",539526.66,539526.66,0,100]
["Доходы бюджетов сельских поселений от возврата бюджетами бюджетной системы Российской Федерации остатков субсидий, субвенций и иных межбюджетных трансфертов, имеющих целевое назначение, прошлых лет","010","000 2 18 00000 10 0000 151",539526.66,539526.66,0,100]
["Доходы бюджетов сельских поселений от возврата остатков субсидий, субвенций и иных межбюджетных трансфертов, имеющих целевое назначение, прошлых лет из бюджетов муниципальных районов","010","000 2 18 60010 10 0000 151",539526.66,539526.66,0,100]
["ВОЗВРАТ ОСТАТКОВ СУБСИДИЙ, СУБВЕНЦИЙ И ИНЫХ МЕЖБЮДЖЕТНЫХ ТРАНСФЕРТОВ, ИМЕЮЩИХ ЦЕЛЕВОЕ НАЗНАЧЕНИЕ, ПРОШЛЫХ ЛЕТ","010","000 2 19 00000 00 0000 000",-7981.23,-7981.23,0,100]
["Возврат остатков субсидий, субвенций и иных межбюджетных трансфертов, имеющих целевое назначение, прошлых лет из бюджетов сельских поселений","010","000 2 19 00000 10 0000 151",-7981.23,-7981.23,0,100]
["Возврат прочих остатков субсидий, субвенций и иных межбюджетных трансфертов, имеющих целевое назначение, прошлых лет из бюджетов сельских поселений","010","000 2 19 60010 10 0000 151",-7981.23,-7981.23,0,100]

{"sheet":"Расходы","index":1,"n_rows":182,"n_cols":7,"rows_kept":182,"cut":false,"hidden":false,"merged":[]}
[{"$nulls":5},"Форма 0503117  с.2"]
["                                                            2. Расходы бюджета"]
[]
[" Наименование показателя","Код строки","Код расхода по бюджетной классификации","Утвержденные бюджетные назначения","Исполнено","Неисполненные назначения ","% исполнения"]
[1,2,3,"4","5","6",7]
["Расходы бюджета - всего","200","000 9600 0000000000 000",448702166.38999999,443368241.88,5333924.51,{"$f":"+E6/D6*100","v":98.811255012893355}]
["ОБЩЕГОСУДАРСТВЕННЫЕ ВОПРОСЫ","200","000 0100 0000000000 000",53616639,53124459.520000003,492179.48,{"$f":"+E7/D7*100","v":99.082039663097873}]
["Функционирование высшего должностного лица субъекта Российской Федерации и муниц","200","000 0102 0000000000 000",2789000,2787188.89,1811.11,99.935062387952684]
["Текущие расходы. Фонд оплаты труда государственных (муниципальных) органов","200","000 0102 9100024999 121",2406000,2405407.31,592.69000000000005,99.975366167913549]
["Текущие расходы. Взносы по обязательному социальному страхованию на выплаты денежного содержания и иные выплаты работникам государственных (муниципальных) органов","200","000 0102 9100024999 129",382000,381781.32,218.68,99.942753926701585]
["Текущие расходы. Уплата иных платежей","200","000 0102 9100024999 853",1000,0.26,999.74,2.6000000000000002E-2]
["Функционирование законодательных (представительных) органов государственной власти и представительных органов муниципальных образований","200","000 0103 0000000000 000",817469,817465.71,3.29,99.999597538255273]
["Текущие расходы. Закупка товаров, работ, услуг в сфере информационно-коммуникационных технологий","200","000 0103 9300024999 242",19100,19100,0,100]
["Текущие расходы. Прочая закупка товаров, работ и услуг","200","000 0103 9300024999 244",20000,19996.71,3.29,99.983549999999994]
["Текущие расходы. Иные межбюджетные трансферты","200","000 0103 9400028999 540",778369,778369,0,100]
["Функционирование Правительства Российской Федерации, высших исполнительных органов государственной власти субъектов Российской Федерации, местных администраций","200","000 0104 0000000000 000",31764150,31612834.399999999,151315.6,99.52362773755948]
["Текущий ремонт. Прочая закупка товаров, работ и услуг","200","000 0104 0110124993 244",318000,317310.49,689.51,99.783172955974848]
["Увеличение стоимости основных средств. Закупка товаров, работ, услуг в сфере информационно-коммуникационных технологий","200","000 0104 0110124994 242",185000,184058.56,941.44,99.491113513513511]
["Увеличение стоимости основных средств. Прочая закупка товаров, работ и услуг","200","000 0104 0110124994 244",51000,50600.69,399.31,99.21703921568627]
["Текущие расходы. Фонд оплаты труда государственных (муниципальных) органов","200","000 0104 0110124999 121",13486000,13485724.710000001,275.29000000000002,99.997958697908956]
["Текущие расходы. Иные выплаты персоналу государственных (муниципальных) органов, за исключением фонда оплаты труда","200","000 0104 0110124999 122",3739000,3738936.29,63.71,99.998296068467511]
["Текущие расходы. Взносы по обязательному социальному страхованию на выплаты денежного содержания и иные выплаты работникам государственных (муниципальных) органов","200","000 0104 0110124999 129",4637000,4636122.59,877.41,99.981078067716183]
["Текущие расходы. Закупка товаров, работ, услуг в сфере информационно-коммуникационных технологий","200","000 0104 0110124999 242",2248000,2221702.7799999998,26297.22,98.83019483985764]
["Текущие расходы. Прочая закупка товаров, работ и услуг","200","000 0104 0110124999 244",5249000,5128337.46,120662.54,97.701228043436856]
["Текущие расходы. Уплата налога на имущество организаций и земельного налога","200","000 0104 0110124999 851",124000,123597,403,99.674999999999997]
["Текущие расходы. Уплата прочих налогов, сборов","200","000 0104 0110124999 852",35000,34452,548,98.434285714285721]
["Текущие расходы. Уплата иных платежей","200","000 0104 0110124999 853",2000,1841.83,158.16999999999999,92.091499999999996]
["Текущие расходы. Прочая закупка товаров, работ и услуг","200","000 0104 0120124999 244",32000,32000,0,100]
["Текущие расходы. Иные межбюджетные трансферты","200","000 0104 0130128999 540",876650,876650,0,100]
["Текущие расходы. Иные межбюджетные трансферты","200","000 0104 0140128999 540",145000,145000,0,100]
["Текущие расходы. Иные межбюджетные трансферты","200","000 0104 0140228999 540",636500,636500,0,100]
["Резервные фонды","200","000 0111 0000000000 000",100000,0,100000,0]
["Текщие расходы. Резервные средства","200","000 0111 9500028999 870",100000,0,100000,0]
["Другие общегосударственные вопросы","200","000 0113 0000000000 000",18146020,17906970.52,239049.48,98.682634098276083]
["Текущие расходы. Прочая закупка товаров, работ и услуг","200","000 0113 0110128999 244",798000,798000,0,100]
["Текщие расходы. Уплата иных платежей","200","000 0113 0120228999 853",59400,59358,42,99.929292929292927]
["Текущие расходы. Иные межбюджетные трансферты","200","000 0113 0150228999 540",6315820,6315820,0,100]
["Текущие рсходы. Прочая закупка товаров, работ и услуг","200","000 0113 0160128999 244",1196000,1017218.48,178781.52,85.051712374581939]
["Текущие рсходы. Уплата прочих налогов, сборов","200","000 0113 0160128999 852",2100,2025,75,96.428571428571431]
["Текущие расходы. Прочая закупка товаров, работ и услуг","200","000 0113 0160328999 244",477400,417902.39,59497.61,87.537157519899452]
["Текущие расходы. Уплата налога на имущество организаций и земельного налога","200","000 0113 0160328999 851",2202000,2201963,37,99.99831970935513]
["Текущие расходы. Уплата иных платежей","200","000 0113 0160328999 853",300,91.24,208.76,30.41333333333333]
["Текущие расходы. Фонд оплаты труда учреждений","200","000 0113 0180127999 111",4586120,4586114.93,5.07,99.999889449033162]
["Текущие расходы. Иные выплаты персоналу учреждений, за исключением фонда оплаты труда","200","000 0113 0180127999 112",808070,808061,9,99.998886235103384]
["Текущие расходы. Взносы по обязательному социальному страхованию на выплаты по оплате труда работников и иные выплаты работникам учреждений","200","000 0113 0180127999 119",1049260,1049257.02,2.98,99.999715990316986]
["Текущие расходы. Закупка товаров, работ, услуг в сфере информационно-коммуникационных технологий","200","000 0113 0180127999 242",65710,65704.740000000005,5.26,99.991995130117189]
["Текущие расходы. Прочая закупка товаров, работ и услуг","200","000 0113 0180127999 244",110190,110177.21,12.79,99.988392776113983]
["Текущие расходы. Пособия, компенсации и иные социальные выплаты гражданам, кроме публичных нормативных обязательств","200","000 0113 0180127999 321",52760,52753.4,6.6,99.987490523123583]
["Текущие расходы. Уплата налога на имущество организаций и земельного налога","200","000 0113 0180127999 851",230,228,2,99.130434782608702]
["Текущие расходы. Уплата прочих налогов, сборов","200","000 0113 0180127999 852",23850,23841,9,99.962264150943398]
["Текущие расходы. Уплата иных платежей","200","000 0113 0180127999 853",1010,1005.11,4.8899999999999997,99.515841584158409]
["Текущие расходы. Прочая закупка товаров, работ и услуг","200","000 0113 0210228999 244",205000,204670,330,99.839024390243907]
["Текущие расходы. Прочая закупка товаров, работ и услуг","200","000 0113 0710128399 244",192800,192780,20,99.989626556016603]
["НАЦИОНАЛЬНАЯ ОБОРОНА","200","000 0200 0000000000 000",575000,536645.18000000005,38354.82,93.329596521739148]
["Мобилизационная и вневойсковая подготовка","200","000 0203 0000000000 000",575000,536645.18000000005,38354.82,93.329596521739148]
["Расходы за счет субвенции на осуществление первичного воинского учета на территориях, где отсутствуют военные комиссариаты. Фонд оплаты труда государственных (муниципальных) органов","200","000 0203 0110251180 121",282000,281932.17,67.83,99.975946808510628]
["Расходы за счет субвенции на осуществление первичного воинского учета на территориях, где отсутствуют военные комиссариаты. Иные выплаты персоналу государственных (муниципальных) органов, за исключением фонда оплаты труда","200","000 0203 0110251180 122",4600,3921,679,85.239130434782609]
["Расходы за счет субвенции на осуществление первичного воинского учета на территориях, где отсутствуют военные комиссариаты. Взносы по обязательному социальному страхованию на выплаты денежного содержания и иные выплаты работникам государственных (муниципальных) органов","200","000 0203 0110251180 129",107000,106905.14,94.86,99.911345794392531]
["Расходы за счет субвенции на осуществление первичного воинского учета на территориях, где отсутствуют военные комиссариаты. Закупка товаров, работ, услуг в сфере информационно-коммуникационных технологий","200","000 0203 0110251180 242",76000,70968.81,5031.1899999999996,93.380013157894737]
["Расходы за счет субвенции на осуществление первичного воинского учета на территориях, где отсутствуют военные комиссариаты. Прочая закупка товаров, работ и услуг","200","000 0203 0110251180 244",105400,72918.06,32481.94,69.182220113851983]
["НАЦИОНАЛЬНАЯ БЕЗОПАСНОСТЬ И ПРАВООХРАНИТЕЛЬНАЯ ДЕЯТЕЛЬНОСТЬ","200","000 0300 0000000000 000",1657700,1652661.13,5038.87,99.696032454605771]
["Защита населения и территории от последствий чрезвычайных ситуаций природного","200","000 0309 0000000000 000",414000,410489.84,3510.16,99.152135265700494]
["Текущие расходы. Прочая закупка товаров, работ и услуг","200","000 0309 0620128739 244",23000,23000,0,100]
["Текущие расходы. Прочая закупка товаров, работ и услуг","200","000 0309 0620218739 244",11000,11000,0,100]
["Текущие расходы. Прочая закупка товаров, работ и услуг","200","000 0309 0630118729 244",9000,9000,0,100]
["Текущие расходы. Закупка товаров, работ, услуг в сфере информационно-коммуникационных технологий","200","000 0309 0630128729 242",5000,1994.37,3005.63,39.887399999999992]
["Текущие расходы. Прочая закупка товаров, работ и услуг","200","000 0309 0630128729 244",366000,365495.47,504.53,99.862150273224032]
["Другие вопросы в области национальной безопасности и правоохранительной деятельности","200","000 0314 0000000000 000",1243700,1242171.29,1528.71,99.877083701857359]
["Текущие расходы. Прочая закупка товаров, работ и услуг","200","000 0314 0610118759 244",8000,8000,0,100]
["Увеличение стоимости основных средств. Прочая закупка товаров, работ и услуг","200","000 0314 0610128754 244",195000,194680,320,99.835897435897436]
["Текущие расходы. Прочая закупка товаров, работ и услуг","200","000 0314 0610128759 244",466000,465005,995,{"$f":"+E71/D71*100","v":99.786480686695285}]
["Текущие расходы. Прочая закупка товаров, работ и услуг","200","000 0314 0610228769 244",5000,5000,0,100]
["Увеличение стоимости основных средств. Прочая закупка товаров, работ и услуг","200","000 0314 0610328764 244",36000,36000,0,100]
["Текущие расходы. Прочая закупка товаров, работ и услуг","200","000 0314 0640128749 244",5000,5000,0,100]
["Текущие расходы. Прочая закупка товаров, работ и услуг","200","000 0314 0640328749 244",14000,14000,0,100]
["Текущие расходы. Прочая закупка товаров, работ и услуг","200","000 0314 0640428749 244",11000,11000,0,100]
["Текущие расходы. Прочая закупка товаров, работ и услуг","200","000 0314 0640528749 244",496000,495851.29,148.71,99.970018145161291]
["Увеличение стоимости основных средств. Прочая закупка товаров, работ и услуг","200","000 0314 0640828744 244",6700,6655,45,99.328358208955223]
["Текущие расходы. Прочая закупка товаров, работ и услуг","200","000 0314 0640828749 244",1000,980,20,98]
["НАЦИОНАЛЬНАЯ ЭКОНОМИКА","200","000 0400 0000000000 000",19422600,19255847.530000001,166752.47,99.141451350488609]
["Дорожное хозяйство (дорожные фонды)","200","000 0409 0000000000 000",19066600,19025847.530000001,40752.47,99.786262521896944]
["Содержание дорог и объектов ЖКХ. Иные межбюджетные трансферты","200","000 0409 0150328212 540",10690175.25,10690175.25,0,100]
["Текущий ремонт. Иные межбюджетные трансферты","200","000 0409 0150328213 540",5913824.75,5913824.75,0,100]
["Текущий ремонт. Прочая закупка товаров, работ и услуг","200","000 0409 0710128323 244",2462600,2421847.5299999998,40752.47,98.345144562657353]
["Другие вопросы в области национальной экономики","200","000 0412 0000000000 000",356000,230000,126000,64.606741573033716]
["Текущие расходы. Прочая закупка товаров, работ и услуг","200","000 0412 0160228999 244",356000,230000,126000,64.606741573033716]
["ЖИЛИЩНО-КОММУНАЛЬНОЕ ХОЗЯЙСТВО","200","000 0500 0000000000 000",199128877.38999999,195087569.63,4041307.76,97.970506431327394]
["Жилищное хозяйство","200","000 0501 0000000000 000",7739595.2000000002,6817679.1399999997,921916.06,88.088316815329051]
["Текущие расходы. Прочая закупка товаров, работ и услуг","200","000 0501 0510228499 244",31000,30767.64,232.36,99.25045161290322]
["Текущие расходы. Субсидии на возмещение недополученных доходов и (или) возмещение фактически понесенных затрат в связи с производством (реализацией) товаров, выполнением работ, оказанием услуг","200","000 0501 0510228499 811",800000,675048.77,124951.23,84.381096249999999]
["Текущие расходы. Прочая закупка товаров, работ и услуг","200","000 0501 0530328599 244",98000,97566,434,99.55714285714285]
["Текущие расходы. Иные межбюджетные трансферты","200","000 0501 0730128999 540",773000,773000,0,100]
["Расходы за счет иных  МБТ на софинансирование мероприятий по ремонту подьездов (сельские поселения) - средства МО. Субсидии на возмещение недополученных доходов и (или) возмещение фактически понесенных затрат в связи с производством (реализацией) товаров, выполнением работ, оказанием услуг","200","000 0501 0730160950 811",1147320,453810.21,693509.79,39.553935257818225]
["Расходы за счет субсидии из бюджета Московской области на ремонт подъездов многоквартирных домов (2017 год). Субсидии на возмещение недополученных доходов и (или) возмещение фактически понесенных затрат в связи с производством (реализацией) товаров, выполнением работ, оказанием услуг","200","000 0501 0730160951 811",416375.2,416375.2,0,100]
["Софинансирование субсидии МО на ремонт подъездов многоквартирных домов. Субсидии на возмещение недополученных доходов и (или) возмещение фактически понесенных затрат в связи с производством (реализацией) товаров, выполнением работ, оказанием услуг","200","000 0501 07301S0950 811",773000,670974.15,102025.85,86.801313065976714]
["Текущие расходы. Уплата иных платежей","200","000 0501 0730218619 853",158000,158000,0,100]
["Текущие расходы. Субсидии на возмещение недополученных доходов и (или) возмещение фактически понесенных затрат в связи с производством (реализацией) товаров, выполнением работ, оказанием услуг","200","000 0501 0730228596 811",2140000,2139395.12,604.88,99.971734579439257]
["Текущие расходы. Уплата иных платежей","200","000 0501 0730228619 853",1371400,1371341.77,58.23,99.995753974041122]
["Текущие расходы. Прочая закупка товаров, работ и услуг","200","000 0501 0730Д28599 244",31500,31400.28,99.72,99.683428571428564]
["Коммунальное хозяйство","200","000 0502 0000000000 000",93052382.189999998,92977593.25,74788.94,99.919627054955683]
["Текущие расходы. Прочая закупка товаров, работ и услуг","200","000 0502 0510228499 244",36000,35725.879999999997,274.12,99.23855555555555]
["Текущие расходы. Субсидии на возмещение недополученных доходов и (или) возмещение фактически понесенных затрат в связи с производством (реализацией) товаров, выполнением работ, оказанием услуг","200","000 0502 0510228499 811",350000,278333.40000000002,71666.600000000006,79.523828571428581]
["Текущие расходы. Прочая закупка товаров, работ и услуг","200","000 0502 0520128599 244",650000,650000,0,100]
["Текущие расходы. Прочая закупка товаров, работ и услуг","200","000 0502 0520228599 244",1948000,1947063.96,936.04,99.951948665297735]
["Прочие расходы. Прочая закупка товаров, работ и услуг","200","000 0502 0520318599 244",21000,21000,0,100]
["Текущие расходы. Прочая закупка товаров, работ и услуг","200","000 0502 0520328599 244",1157000,1156324.8799999999,675.12,99.941649092480546]
["Текущий ремонт. Прочая закупка товаров, работ и услуг","200","000 0502 0520618513 244",2966839.26,2966839.26,0,100]
["Увеличение стоимости основных средств. Бюджетные инвестиции на приобретение объектов недвижимого имущества в государственную (муниципальную) собственность","200","000 0502 0520618514 412",23654542.93,23654482.93,60,99.999746348935275]
["Увеличение стоимости основных средств. Бюджетные инвестиции на приобретение объектов недвижимого имущества в государственную (муниципальную) собственность","200","000 0502 0520628514 412",58162000,58161748.119999997,251.88,99.999566933736787]
["Текущие расходы. Прочая закупка товаров, работ и услуг","200","000 0502 0520628519 244",4107000,4106074.82,925.18,99.977473094716331]
["Благоустройство","200","000 0503 0000000000 000",98336900,95292297.239999995,3044602.76,96.903906102388831]
["Увеличение стоимости основных средств. Субсидии бюджетным учреждениям на иные цели","200","000 0503 0540121334 612",711500,711425,75,99.98945888966972]
["Оплата труда и начисления на выплаты по оплате труда. Субсидии бюджетным учреждениям на финансовое обеспечение государственного (муниципального) задания на оказание государственных (муниципальных) услуг (выполнение работ)","200","000 0503 0540121335 611",3409000,3409000,0,100]
["Текущие расходы. Субсидии бюджетным учреждениям на финансовое обеспечение государственного (муниципального) задания на оказание государственных (муниципальных) услуг (выполнение работ)","200","000 0503 0540121339 611",2587000,2587000,0,100]
["Текущие расходы. Субсидии бюджетным учреждениям на иные цели","200","000 0503 0540121339 612",1180000,1179550,450,99.961864406779668]
["Текущие расходы. Прочая закупка товаров, работ и услуг","200","000 0503 0540218339 244",12000,12000,0,100]
["Увеличение стоимости основных средств. Прочая закупка товаров, работ и услуг","200","000 0503 0540228334 244",2897900,218500,2679400,7.539942717139998]
["Текущие расходы. Прочая закупка товаров, работ и услуг","200","000 0503 0540228339 244",274000,273221.49,778.51,99.715872262773715]
["Текущие расходы. Закупка товаров, работ, услуг в сфере информационно-коммуникационных технологий","200","000 0503 0540318339 242",599200,598158,1042,99.826101468624827]
["Текущие расходы. Прочая закупка товаров, работ и услуг","200","000 0503 0540318339 244",34800,34800,0,100]
["Текущие расходы. Прочая закупка товаров, работ и услуг","200","000 0503 0710128399 244",8598000,8597171.0199999996,828.98,99.990358455454754]
["Текущие расходы. Прочая закупка товаров, работ и услуг","200","000 0503 0710228399 244",578000,577562.68000000005,437.32,99.924339100346032]
["Текущие расходы. Прочая закупка товаров, работ и услуг","200","000 0503 0720228319 244",444000,443818.16,181.84,99.959045045045031]
["Строительство (реконструкция). Прочая закупка товаров, работ и услуг","200","000 0503 0720328317 244",195000,194059,941,99.517435897435902]
["Текущие расходы. Прочая закупка товаров, работ и услуг","200","000 0503 0720328319 244",9547000,9187133.8499999996,359866.15,96.230583953074259]
["Увеличение стоимости основных средств. Субсидии бюджетным учреждениям на иные цели","200","000 0503 0740121394 612",2315500,2314898.04,601.96,99.974003023105169]
["Оплата труда и начисления на выплаты по оплате труда. Субсидии бюджетным учреждениям на финансовое обеспечение государственного (муниципального) задания на оказание государственных (муниципальных) услуг (выполнение работ)","200","000 0503 0740121395 611",42329000,42329000,0,100]
["Текущие расходы. Субсидии бюджетным учреждениям на финансовое обеспечение государственного (муниципального) задания на оказание государственных (муниципальных) услуг (выполнение работ)","200","000 0503 0740121399 611",22625000,22625000,0,100]
["ОБРАЗОВАНИЕ","200","000 0700 0000000000 000",5570350,5569864.5199999996,485.48,99.991284569192231]
["Молодежная политика","200","000 0707 0000000000 000",446000,445514.52,485.48,99.89114798206279]
["Текущие расходы. Прочая закупка товаров, работ и услуг","200","000 0707 0320228999 244",369000,369000,0,100]
["Текущие расходы. Прочая закупка товаров, работ и услуг","200","000 0707 0330128999 244",77000,76514.52,485.48,99.369506493506492]
["Другие вопросы в области образования","200","000 0709 0000000000 000",5124350,5124350,0,100]
["Приобретение оборудования. Иные межбюджетные трансферты","200","000 0709 0150428994 540",5124350,5124350,0,100]
["КУЛЬТУРА, КИНЕМАТОГРАФИЯ","200","000 0800 0000000000 000",91486000,91435747.569999993,50252.43,{"$f":"+E135/D135*100","v":99.945070907024018}]
["Культура","200","000 0801 0000000000 000",91486000,91435747.569999993,50252.43,99.945070907024018]
["Расходы на оплату труда и начисления по оплате труда. Субсидии бюджетным учреждениям на финансовое обеспечение государственного (муниципального) задания на оказание государственных (муниципальных) услуг (выполнение работ)","200","000 0801 0210121815 611",60494000,60494000,0,100]
["Текущие расходы. Субсидии бюджетным учреждениям на финансовое обеспечение государственного (муниципального) задания на оказание государственных (муниципальных) услуг (выполнение работ)","200","000 0801 0210121819 611",9606000,9606000,0,100]
["Текущие расходы. Субсидии бюджетным учреждениям на финансовое обеспечение государственного (муниципального) задания на оказание государственных (муниципальных) услуг (выполнение работ)","200","000 0801 0210121889 611",1691000,1691000,0,100]
["Текущие расходы. Субсидии бюджетным учреждениям на иные цели","200","000 0801 0210121899 612",84000,84000,0,100]
["Софинансирование расходов на повышение заработной платы работникам муниципальных учреждений в сфере культуры за счет субсидии из МО. Субсидии бюджетным учреждениям на финансовое обеспечение государственного (муниципального) задания на оказание государственных (муниципальных) услуг (выполнение работ)","200","000 0801 0210160440 611",5498000,5498000,0,100]
["Софинансирование расходов на повышение заработной платы работникам муниципальных учреждений культуры МО ( ср-ва поселений). Субсидии бюджетным учреждениям на финансовое обеспечение государственного (муниципального) задания на оказание государственных (муниципальных) услуг (выполнение работ)","200","000 0801 02101S0440 611",1186000,1186000,0,100]
["Текущие расходы. Субсидии бюджетным учреждениям на иные цели","200","000 0801 0210221899 612",1216800,1216754.94,45.06,99.996296844181458]
["Увеличение стоимости основных средств. Прочая закупка товаров, работ и услуг","200","000 0801 0210228894 244",12000,11960,40,99.666666666666671]
["Текущие расходы. Прочая закупка товаров, работ и услуг","200","000 0801 0210228999 244",3240000,3239371,629,99.980586419753081]
["Текущий ремонт. Субсидии бюджетным учреждениям на иные цели","200","000 0801 0210421893 612",483100,434319.45,48780.55,89.902597805837303]
["Увеличение стоимости основных средств. Субсидии бюджетным учреждениям на иные цели","200","000 0801 0210521894 612",1108700,1108615,85,99.992333363398572]
["Текущие расходы. Субсидии бюджетным учреждениям на иные цели","200","000 0801 0210521899 612",629400,629238.79,161.21,99.97438671750875]
["Оплата труда и начисления на выплаты по оплате труда. Субсидии бюджетным учреждениям на финансовое обеспечение государственного (муниципального) задания на оказание государственных (муниципальных) услуг (выполнение работ)","200","000 0801 0220111815 611",403000,403000,0,100]
["Оплата труда и начисления на выплаты по оплате труда. Субсидии бюджетным учреждениям на финансовое обеспечение государственного (муниципального) задания на оказание государственных (муниципальных) услуг (выполнение работ)","200","000 0801 0220121815 611",4590000,4590000,0,100]
["Текущие расходы. Субсидии бюджетным учреждениям на финансовое обеспечение государственного (муниципального) задания на оказание государственных (муниципальных) услуг (выполнение работ)","200","000 0801 0220121819 611",405000,405000,0,100]
["Софинансирование расходов на повышение заработной платы работникам муниципальных учреждений в сфере культуры за счет субсидии из МО. Субсидии бюджетным учреждениям на финансовое обеспечение государственного (муниципального) задания на оказание государственных (муниципальных) услуг (выполнение работ)","200","000 0801 0220160440 611",166000,166000,0,100]
["Софинансирование расходов на повышение заработной платы работникам муниципальных учреждений в сфере культуры( ср-ва поселений). Субсидии бюджетным учреждениям на финансовое обеспечение государственного (муниципального) задания на оказание государственных (муниципальных) услуг (выполнение работ)","200","000 0801 02201S0440 611",102000,102000,0,100]
["Увеличение стоимости основных средств. Субсидии бюджетным учреждениям на иные цели","200","000 0801 0220221894 612",317000,317000,0,100]
["Текущие расходы. Субсидии бюджетным учреждениям на иные цели","200","000 0801 0530121889 612",254000,253488.39,511.61,99.798578740157481]
["СОЦИАЛЬНАЯ ПОЛИТИКА","200","000 1000 0000000000 000",20145000,20017239.329999998,127760.67,99.365794638868195]
["Пенсионное обеспечение","200","000 1001 0000000000 000",265000,264755.88,244.12,99.907879245283013]
["Текущие расходы. Пособия, компенсации и иные социальные выплаты гражданам, кроме публичных нормативных обязательств","200","000 1001 0120328999 321",265000,264755.88,244.12,99.907879245283013]
["Социальное обеспечение населения","200","000 1003 0000000000 000",19530000,19408361.449999999,121638.55,99.377170762928827]
["Текущие расходы. Прочая закупка товаров, работ и услуг","200","000 1003 0170128999 244",210000,121496.9,88503.1,57.855666666666664]
["Текущие расходы. Пособия, компенсации, меры социальной поддержки по публичным нормативным обязательствам","200","000 1003 0170128999 313",16733000,16730982,2018,99.987939998804748]
["Текущие расходы. Прочая закупка товаров, работ и услуг","200","000 1003 0170228999 244",37000,24628.42,12371.58,66.563297297297296]
["Текущие расходы. Пособия, компенсации, меры социальной поддержки по публичным нормативным обязательствам","200","000 1003 0170228999 313",2550000,2531254.13,18745.87,99.264867843137253]
["Другие вопросы в области социальной политики","200","000 1006 0000000000 000",350000,344122,5878,98.320571428571427]
["Текущие расходы. Прочая закупка товаров, работ и услуг","200","000 1006 0170328999 244",350000,344122,5878,98.320571428571427]
["ФИЗИЧЕСКАЯ КУЛЬТУРА И СПОРТ","200","000 1100 0000000000 000",24499000,24087207.469999999,411792.53,98.319145556961502]
["Физическая культура","200","000 1101 0000000000 000",19145000,18735020.579999998,409979.42,97.858556176547395]
["Текущие расходы. Иные межбюджетные трансферты","200","000 1101 0150528999 540",550000,550000,0,100]
["Оплата труда и начисления на оплату труда. Субсидии бюджетным учреждениям на финансовое обеспечение государственного (муниципального) задания на оказание государственных (муниципальных) услуг (выполнение работ)","200","000 1101 0310221815 611",10760000,10760000,0,100]
["Текущие расходы. Субсидии бюджетным учреждениям на финансовое обеспечение государственного (муниципального) задания на оказание государственных (муниципальных) услуг (выполнение работ)","200","000 1101 0310221819 611",1228000,1228000,0,100]
["Увеличение стоимости основных средств. Субсидии бюджетным учреждениям на иные цели","200","000 1101 0310521894 612",2918000,2509302.4900000002,408697.51,85.993916723783428]
["Текущие расходы. Субсидии бюджетным учреждениям на иные цели","200","000 1101 0310521899 612",3680000,3679649.32,350.68,99.990470652173912]
["Текущие расходы. Субсидии бюджетным учреждениям на иные цели","200","000 1101 0310Д21899 612",9000,8068.77,931.23,89.653000000000006]
["Массовый спорт","200","000 1102 0000000000 000",5354000,5352186.8899999997,1813.11,99.966135412775486]
["Текущий ремонт. Прочая закупка товаров, работ и услуг","200","000 1102 0310328993 244",186000,185901.96,98.04,99.947290322580642]
["Увеличение стоимости основных средств. Прочая закупка товаров, работ и услуг","200","000 1102 0310328994 244",3729000,3728413.86,586.14,99.984281576830242]
["Текущие расходы. Прочая закупка товаров, работ и услуг","200","000 1102 0310328999 244",1341000,1340044.17,955.83,99.928722595078284]
["Текущие расходы. Прочая закупка товаров, работ и услуг","200","000 1102 0310428999 244",98000,97826.9,173.1,99.823367346938767]
["МЕЖБЮДЖЕТНЫЕ ТРАНСФЕРТЫ ОБЩЕГО ХАРАКТЕРА БЮДЖЕТАМ СУБЪЕКТОВ РОССИЙСКОЙ ФЕДЕРАЦИИ И МУНИЦИПАЛЬНЫХ ОБРАЗОВАНИЙ","200","000 1400 0000000000 000",32601000,32601000,0,100]
["Прочие межбюджетные трансферты общего характера","200","000 1403 0000000000 000",32601000,32601000,0,100]
["Субсидии, подлежащие предоставлению в бюджет Московской области (возврат). Субсидии, за исключением субсидий на софинансирование капитальных вложений в объекты государственной (муниципальной) собственности","200","000 1403 99000Т9990 521",32601000,32601000,0,100]
["Результат исполнения бюджета (дефицит \"--\", профицит \"+\")","450","000 7900 0000000000 000",-43806543.57,-38076326.039999999,-3744790.28]

{"sheet":"Источники","index":2,"n_rows":22,"n_cols":6,"rows_kept":22,"cut":false,"hidden":false,"merged":[[17,0,17,2],[20,0,20,2]]}
[{"$nulls":5},"Форма 0503117  с.3"]
["                                           3. Источники финансирования дефицита бюджетов"]
[]
[" Наименование показателя","Код строки","Код источника финансирования дефицита бюджета по бюджетной классификации","Утвержденные бюджетные назначения","Исполнено","Неисполненные назначения"]
[1,2,3,"4","5","6"]
["Источники финансирования дефицита бюджетов - всего",500,"000 90 00 00 00 00 0000 000",43806543.57,38076326.039999999,5730217.5300000003]
["Изменение остатков средств",700,"OOO 01 00 00 00 00 0000 000",43806543.57,38076326.039999999,5730217.5300000003]
["Изменение остатков средств на счетах по учету средств бюджета",700,"000 01 05 00 00 00 0000 000",43806543.57,38076326.039999999,5730217.5300000003]
["Увеличение остатков средств бюджетов",710,"000 01 05 00 00 00 0000 500",-404895622.81999999,-406436075.25,1540452.43]
["Увеличение прочих остатков средств бюджетов",710,"000 01 05 02 00 00 0000 500",-404895622.81999999,-406436075.25,1540452.43]
["Увеличение прочих остатков денежных средств бюджетов",710,"000 01 05 02 01 00 0000 510",-404895622.81999999,-406436075.25,1540452.43]
["Увеличение прочих остатков денежных средств бюджетов сельских поселений",710,"000 01 05 02 01 10 0000 510",-404895622.81999999,-406436075.25,1540452.43]
["Уменьшение остатков средств бюджетов",720,"000 01 05 00 00 00 0000 600",448702166.38999999,444512401.29000002,4189765.1]
["Уменьшение прочих остатков средств бюджетов",720,"000 01 05 02 00 00 0000 600",448702166.38999999,444512401.29000002,4189765.1]
["Уменьшение прочих остатков денежных средств бюджетов",720,"000 01 05 02 01 00 0000 610",448702166.38999999,444512401.29000002,4189765.1]
["Уменьшение прочих остатков денежных средств бюджетов сельских поселений",720,"000 01 05 02 01 10 0000 610",448702166.38999999,444512401.29000002,4189765.1]
[]
[" Руководитель   __________________                   __ А.В.Бредов __",null,null,"Руководитель финансово-"]
["                                  (подпись)                                (расшифровка подписи)",null,null,"экономической службы        ______________      __  ______"]
[{"$nulls":4},"             (подпись)             (расшифровка подписи)"]
["Главный бухгалтер ________________     __ Чуприна С.И. __"]
["                                       (подпись)                (расшифровка подписи)"]